Cogmind - Beta 11.1 @@@ ROGUE MODE // 2022.09.17 @ 20:28:52 Player: Endlessblaze Result: Destroyed by S-10 Pest with Light Assault Rifle Performance ------------- Evolutions (1) 500 Regions Visited (2) 400 Robots Destroyed (33) 165 Value Destroyed (660) 660 Prototype IDs (4) 80 Alien Tech Used (0) 0 Bonus (22) 22 TOTAL SCORE: 1827 Bonus ------- High Alert Combat Kills 22 Cogmind --------- Core Integrity 0/400 Matter 300/300 Energy 350/350 System Corruption 0% Temperature Cool (0) Movement Core (150) Ox2 Location -9/Materials Parts ------- > --- POWER (2) -------- (None) > --- PROPULSION (2) --- (None) > --- UTILITY (3) ------ Small Storage Unit High-capacity Battery > --- WEAPON (2) ------- (None) > --- INVENTORY (8) ---- Cryofiber Web Seismic Detector System Shield Beam Rifle Particle Gun Spread Laser Peak State ------------ > --- POWER ------------ Ion Engine Improved Ion Engine > --- PROPULSION ------- Improved Aluminum Leg Improved Aluminum Leg > --- UTILITY ---------- Small Storage Unit High-capacity Battery Improved Terrain Scanner > --- WEAPON ----------- Beam Rifle Katana > --- INVENTORY -------- Aluminum Leg Cryofiber Web Seismic Detector System Shield Particle Gun Spread Laser Grenade Launcher Plasma Cutter [Rating: 18] Favorites ----------- Power Ion Engine Engine Ion Engine Propulsion Improved Aluminum Leg Leg Improved Aluminum Leg Utility Small Storage Unit Device Improved Terrain Scanner Storage Small Storage Unit Weapon EM Pulse Gun Energy Gun EM Pulse Gun Ballistic Gun Light Assault Rifle Launcher Grenade Launcher Special Weapon Plasma Cutter Slashing Weapon Katana Build | -11 -10 -9 ------- Run | Scr Mat Mat Slots Evolved 2 | . . 2 Power 1 | . . 1 Propulsion . | . . . Utility 1 | . . 1 Weapon . | . . . Parts Attached 25 | 7 7 11 Power 3 | 1 1 1 Engine 3 | 1 1 1 Core . | . . . Reactor . | . . . Propulsion 5 | 2 2 1 Treads . | . . . Leg 5 | 2 2 1 Wheel . | . . . Hover . | . . . Flight . | . . . Utility 5 | 2 1 2 Device 3 | 1 . 2 Storage 2 | 1 1 . Processor . | . . . Hackware . | . . . Protection . | . . . Artifact . | . . . Weapon 12 | 2 3 7 Energy Gun 4 | . 2 2 Energy Cannon . | . . . Ballistic Gun 4 | 2 1 1 Ballistic Cannon . | . . . Launcher 2 | . . 2 Special Weapon 1 | . . 1 Impact Weapon . | . . . Slashing Weapon 1 | . . 1 Piercing Weapon . | . . . Special Melee Weapon . | . . . Unidentified Prototypes . | . . . Parts Lost 11 | . . 11 Power 2 | . . 2 Propulsion 3 | . . 3 Utility 1 | . . 1 Weapon 5 | . . 5 Highest Loss Streak 7 | . . 7 To Critical Strikes . | . . . Average Slot Usage (%) 94 | . 100 86 Engine 15 | . 14 16 Leg 23 | . 28 18 Device 6 | . 3 9 Storage 23 | . 24 22 Energy Gun 19 | . 23 12 Ballistic Gun 3 | . 4 1 Slashing Weapon 1 | . . 3 Naked Turns . | . . . Heaviest Build 28 | 13 18 28 Greatest Support 26 | 20 26 26 Greatest Overweight (x) 6 | 3 1 6 Average Overweight (x) . | 1 . . Largest Inventory Capacity 8 | 8 8 8 Average Capacity 7 | 7 8 8 Most Carried 8 | 4 8 8 Average Carried 6 | 3 7 7 Final Capacity 8 | 8 8 8 Final Carried 8 | 4 8 6 Class Distribution -------------------- 100% | Mutant Dominant Class ---------------- Mutant | -10/Materials Mutant | -9/Materials Resources | -11 -10 -9 ----------- Run | Scr Mat Mat Matter Collected 564 | 250 148 166 Remotely . | . . . Salvage Created 919 | 52 381 486 Parts 76 | 4 32 40 Haulers Intercepted . | . . . Recyclers Shooed . | . . . Parts Field Recycled . | . . . Retrieved Matter . | . . . Parts Self-Destructed . | . . . Prevented . | . . . Kills | -11 -10 -9 ------- Run | Scr Mat Mat Combat Hostiles Destroyed 22 | . 8 14 Melee 3 | . . 3 Guns 15 | . 8 7 AOE 4 | . . 4 Classes Destroyed 8 | 2 5 1 Worker 3 | 1 1 1 Tunneler 2 | 1 . 1 Recycler 1 | . 1 . Operator 1 | . 1 . Watcher 4 | . 2 2 Swarmer 12 | . 6 6 Grunt 6 | . 2 4 Sentry 4 | . . 4 Best Kill Streak 5 | 1 3 5 Combat Bots Only 5 | . 3 5 Max Kills in Single Turn 3 | 1 1 3 Gunslinging . | . . . Exploded 2 | . . 2 Melee 1 | . . 1 Uniques/NPCs Destroyed . | . . . Combat | -11 -10 -9 -------- Run | Scr Mat Mat Damage Taken 1587 | . 395 1192 Core 455 | . 53 402 Absorbed by Shields . | . . . Core Remaining (%) 89 | 100 78 . Volleys Fired 93 | 14 35 44 Largest 2 | 2 2 2 Hottest 121 | 40 80 121 Shots Fired 164 | 28 70 66 Gun 153 | 28 70 55 Cannon . | . . . Launcher 9 | . . 9 Special 2 | . . 2 Kinetic 60 | 28 30 2 Thermal 32 | . . 32 Explosive 9 | . . 9 Electromagnetic 63 | . 40 23 Robot Hit Streak 9 | 7 9 6 Robot Miss Streak 5 | 3 5 4 Penetration Max . | . . . Secondary Targets 2 | . 2 . Max Gunslinging Chain 1 | . 1 . Shots Hit Robots 99 | 20 33 46 Core Hits 44 | 6 17 21 Critical Kills . | . . . Critical Parts Destroyed . | . . . Critical Strikes . | . . . Melee Attacks 9 | . . 9 Impact . | . . . Slashing 9 | . . 9 Piercing . | . . . Sneak Attacks 1 | . . 1 Combat Hostiles . | . . . Follow-up Attacks . | . . . Damage Inflicted 1776 | 174 452 1150 Guns 1040 | 174 405 461 Cannons . | . . . Explosions 472 | . 47 425 Melee 244 | . . 244 Ramming . | . . . Kinetic 305 | 174 100 31 Thermal 518 | . 47 471 Explosive 254 | . . 254 Electromagnetic 455 | . 305 150 Impact . | . . . Slashing 244 | . . 244 Piercing . | . . . Highest Corruption . | . . . Average Corruption . | . . . Corruption Purged . | . . . Corruption Blocked . | . . . Overload Shots . | . . . Overflow Damage 40 | . . 40 Projectiles . | . . . Explosions 22 | . . 22 Melee 18 | . . 18 Knockbacks . | . . . Impact . | . . . Kinetic . | . . . Secondary . | . . . Self-Inflicted Damage 20 | . . 20 Shots 1 | . . 1 Rammed . | . . . Targets Rammed . | . . . Kicked . | . . . Crushed . | . . . Highest Temperature 469 | . 138 469 Average Temperature 98 | . 37 123 Received Heat Transfer 375 | . 45 330 Effects 5 | . . 5 Shutdowns 2 | . . 2 Energy Bleed 1 | . . 1 Interference 2 | . . 2 Siege Activations . | . . . Robots Corrupted . | . . . Combat Hostiles . | . . . Parts Fried 1 | . 1 . Impact Corruptions . | . . . Robots Melted . | . . . Combat Hostiles . | . . . Parts Melted 1 | . . 1 Heat Transferred 1027 | . . 1027 Parts Sabotaged . | . . . Parts Stolen . | . . . Parts Stripped . | . . . Power Chain Reactions 2 | . 1 1 Missiles Intercepted . | . . . Alert | -11 -10 -9 ------- Run | Scr Mat Mat Peak Influence 489 | 10 241 489 Initial 6 | . 6 4 Average 150 | 1 75 308 Maximum Alert Level 2 | . 1 2 Low Security (%) 70 | 100 94 26 Level 1 20 | . 5 48 Level 2 9 | . . 24 Level 3 . | . . . Level 4 . | . . . Level 5 . | . . . High Security . | . . . Max Security . | . . . Squads Dispatched 1 | . . 1 Investigation . | . . . Extermination . | . . . Reinforcement 1 | . . 1 Assault . | . . . Garrison . | . . . Intercept . | . . . Searches Triggered . | . . . Construction Impeded . | . . . Haulers Reinforced . | . . . Active Scanning Responses . | . . . Cargo Convoy Interrupts . | . . . Stealth | -11 -10 -9 --------- Run | Scr Mat Mat Distress Signals 4 | . 2 2 Communications Jammed . | . . . Distress Signals . | . . . Times Spotted 36 | . 13 23 Peak Tracking Total 5 | . 4 5 Tactical Retreats 3 | . 2 1 Traps | -11 -10 -9 ------- Run | Scr Mat Mat Traps Triggered 1 | . . 1 Indirectly . | . . . Trap Hack Attempts . | . . . Triggered . | . . . Disarmed 7 | . 7 . Reprogrammed . | . . . Reused . | . . . Traps Extracted . | . . . Installed . | . . . Triggered . | . . . Machines | -11 -10 -9 ---------- Run | Scr Mat Mat Machines Disabled 4 | . . 4 Max in Single Turn 2 | . . 2 Machines Sabotaged . | . . . Garrisons Compromised . | . . . Overloaded Fab Kills . | . . . Hacking | -11 -10 -9 --------- Run | Scr Mat Mat Machines Accessed 12 | . 10 2 Terminals 10 | . 8 2 Fabricators . | . . . Repair Stations . | . . . Recycling Units 2 | . 2 . Scanalyzers . | . . . Garrison Access . | . . . Total Hacks 33 | . 31 2 Successful 22 | . 21 1 Failed 11 | . 10 1 Catastrophic 2 | . 2 . Database Lockouts . | . . . Manual 11 | . 11 . Terminals 28 | . 26 2 Fabricators . | . . . Repair Stations . | . . . Recycling Units 5 | . 5 . Scanalyzers . | . . . Garrison Access . | . . . Terminal Hacks 13 | . 12 1 Robot Analysis 1 | . 1 . Prototype ID Bank 3 | . 2 1 Emergency Access Points 1 | . 1 . Terminal Index 1 | . 1 . Unreport Threat 1 | . 1 . Locate Traps 1 | . 1 . Disarm Traps 2 | . 2 . Dispatch Records 1 | . 1 . Hauler Manifests 1 | . 1 . Zone Layout 1 | . 1 . Fabricator Hacks . | . . . Repair Station Hacks . | . . . Recycling Unit Hacks 4 | . 4 . Process 1 | . 1 . Report Inventory 2 | . 2 . Retrieve Matter 1 | . 1 . Scanalyzer . | . . . Garrison Access Hacks . | . . . Unauthorized Hacks 5 | . 5 . Terminals 5 | . 5 . Track 2 | . 2 . Botnet 3 | . 3 . Fabricators . | . . . Repair Stations . | . . . Recycling Units . | . . . Scanalyzers . | . . . Garrison Access . | . . . Data Cores Recovered 1 | . 1 . Used 1 | . 1 . Hacking Detections 12 | . 10 2 Full Trace Events . | . . . Feedback Events . | . . . Feedback Blocked . | . . . Robot Schematics Acquired . | . . . Robots Built . | . . . Authchips . | . . . Time . | . . . Total Robot Build Rating . | . . . Part Schematics Acquired . | . . . Parts Built . | . . . Authchips . | . . . Time . | . . . Total Part Build Rating . | . . . Parts Repaired . | . . . Time . | . . . Parts Recycled . | . . . Recycled Matter 63 | . 63 . Retrieved Matter 63 | . 63 . Retrieved Components . | . . . Parts Scanalyzed . | . . . Part Schematics Acquired . | . . . Parts Damaged . | . . . Bothacking | -11 -10 -9 ------------ Run | Scr Mat Mat Used RIF Installer . | . . . Robots Hacked . | . . . Non-combat . | . . . Combat . | . . . Robot Hacks Applied . | . . . Relay Couplers Released . | . . . Fabnet Peak Effective % . | . . . Robots Rewired . | . . . Allies Hacked . | . . . Hacks Repelled . | . . . Allies | -11 -10 -9 -------- Run | Scr Mat Mat Total Allies . | . . . Largest Group . | . . . Highest-Rated Group . | . . . Highest-Rated Ally . | . . . Total Orders . | . . . Ally Attacks . | . . . Total Damage . | . . . Kills . | . . . Allies Corrupted . | . . . Allies Melted . | . . . Intel | -11 -10 -9 ------- Run | Scr Mat Mat Robot Analysis Total 1 | . 1 . Derelict Logs Recovered . | . . . Drone Launches . | . . . Drone Recoveries . | . . . Exploration | -11 -10 -9 ------------- Run | Scr Mat Mat Turns Passed 1911 | 295 904 712 Spaces Moved 1103 | 159 627 317 Core 157 | 110 . 47 Treads . | . . . Legs 946 | 49 627 270 Wheels . | . . . Hover . | . . . Flight . | . . . Fastest Speed 50 | 50 120 120 Average Speed 139 | 153 120 169 Slowest Speed 350 | 200 190 350 Overloaded Moves . | . . . Propulsion Burnouts . | . . . Robots Hopped . | . . . Cave-ins Triggered . | . . . Exploration Rate (%) 42 | 8 93 27 Regions Visited 2 Branch Regions . Pre-discovered Areas . | . . . Known Exits Taken . | . . . Unknown Exits Taken 2 | 1 1 . Scrap Searched . | . . . Spaces Dug . | . . . Terrain Destroyed 116 | . 3 113 Melee . | . . . Projectile . | . . . AOE 116 | . 3 113 Terrain Rammed . | . . . Walls Destroyed . | . . . Machines Disabled . | . . . Actions | -11 -10 -9 --------- Run | Scr Mat Mat Total 1309 | 185 714 410 Wait 52 | 2 35 15 Move 1101 | 158 626 317 Hop . | . . . Pick Up 14 | 4 4 6 Fast Attach 15 | 7 4 4 Attach 4 | . . 4 Detach 1 | . . 1 Swap 6 | . 3 3 Drop 14 | . 7 7 Fire 93 | 14 35 44 Melee 9 | . . 9 Ram . | . . . Kick . | . . . Crush . | . . . Escape Stasis . | . . . Rewire . | . . . Trap . | . . . Miscellaneous . | . . . Route ------- -11/Scrapyard -10/Materials (discovered 3 exits: *Mat x2 / [*Min]) -9/Materials History --------- Turn | Location | Event 23 | -11/Scrapyard | Discovered new exit (range 15) 296 | -11/Scrapyard | Entered Materials 326 | -10/Materials | Build established: Mutant 677 | -10/Materials | Discovered new exit (range 7) 1017 | -10/Materials | Discovered new exit (range 16) 1161 | -10/Materials | Discovered new exit (range 14) 1200 | -10/Materials | Entered another Materials area 1200 | -9/Materials | Evolved 2 slots: Power x1, Utility x1 1729 | -9/Materials | Core integrity fell below 50% 1825 | -9/Materials | Core integrity fell below 20% 1858 | -9/Materials | Lost 7 parts (1p3n1u2w) 1912 | -9/Materials | Destroyed by S-10 Pest with Light Assault Rifle Last Messages --------------- K-01 Serf collects debris. U-05 Engineer lays Concrete. K-01 Serf collects debris. U-05 Engineer builds a Wall. U-05 Engineer lays Concrete. R-06 Scavenger collects Lgt. Treads. U-05 Engineer builds a Wall. U-05 Engineer lays Concrete. U-05 Engineer builds a Wall. K-01 Serf collects debris. R-06 Scavenger collects Beam Rifle. U-05 Engineer builds a Wall. U-05 Engineer lays Concrete. U-05 Engineer builds a Door. U-05 Engineer lays Concrete. U-05 Engineer builds a Wall. Connecting with Terminal... U-05 Engineer builds a Wall. Katana destroyed. U-05 Engineer lays Concrete. Map ----- +----------------------------------------------------+ | ?????????????????????????????????????????????????? | | ?????????????????????????###?????????????????????? | | ????????????????????????? ???????????????????? | | ????????????????????????? ????????????????????? | | ????????????????????????? ????????????????????? | | ????????????????????????? ????????????????????? | | ????????????????????????? ????????????????????? | | ????????????????????????? #????????????????????? | | ????????????????????????# #????? ??????????????? | | ????????????????????????# #??? ""?????????????? | | ????????????????????????# s+? """????????????? | | ????????????????????????#u #? """????????????? | | ???????????????????????## # ????????????? | | ??????????????????####?"# # ""?????????????? | | ???????????????####""#### # """??#?????????? | | ???????????????# # # """#???????????? | | ????????????? ?# T [ # ; #???????????? | | ???????????????# # ;#####???????????????? | | ???????????????# #o ;#???#???? ??????????? | | ???????????????# + ##???????????????????? | | ???????????????# # #???#?#?????????#????? | | ???????????????# # #??????????#??#?#????? | | ???????????????# # #????#???????????????? | | ?+######??#?#### # ##???????????????????? | | #################ar #########???????????? | | % @ ### T #???????????? | | ### #??#????????? | | ak % k ## """#???????????? | | #####+###########%#### ! """#??#????????? | | ????????????#*% [ #?## ##?# """#???????????? | | ????????????# #??### #### #??#????#???? | | ????????????# """ ##### ######+####???????????? | | ????????"???# """ # ## #? #????#????? | | ?????????S??# """ # #? ??????#???? | | ??????? ????# [ #???##???????? | | ?????????? ?# """ = # ! #??#?##???#??? | | ????????????# """ # # #? ?#????????? | | ????????????# """ #### ### ###??#?????????? | | ????????????# #??#! !/ #?# #?#? ??????????? | | ????????????# #??#!!!!//#?# #?????#????????? | | ????????????#########??########?# #????#??#??????? | | ?????????????????????#??####?##?#%##?#?#?????????? | | ??????????????????????#??????#??# #??? ?#????????? | | ?????????????????"?????????#???## ###? ??????????? | | ?????????????????"??????#???????# #??? ?#?????#??? | | ?????????????????"???????#?#??### #### ########### | | ??????????????????????????#???# ## # # | | ???????????????????????#??##??# = ## # # | | ????????????????????????????### % ## | | ??????????????????????????????# ! ## # # | +----------------------------------------------------+ Best States ------------- Heat Dissipation 28 Energy Generation 17 Energy Capacity 665 Matter Stores 300 Matter Capacity 300 Sight Range 16 Terrain Scan Range 16 Terrain Scan Density 10 Evasion (%) 55 Item Schematics ----------------- None Robot Schematics ------------------ None Fabricated ------------ Nothing Alien Tech Used ----------------- None Achievements -------------- None Challenges ------------ None Game ------ Seed MissileIonVibroblade Manual? 0 Play Time 00:23:16 Cumulative 10.9 hours Start 2022.09.17 @ 20:07:14 End 2022.09.17 @ 20:28:52 Sessions 1 Manual Loads 0 Difficulty Rogue Special Mode None Game No. 14 Rogue 14 Adventurer 0 Explorer 0 Win Type - Total 0 Types 0/0/0/0/0/0/0/0/0 Lore% 21 Gallery% 19 Achievement% 19 Wizard Run 0 Options --------- ASCII 0 Keyboard 0 Movement Arrows Keybinds 0 Fullscreen 1 Font 12/Smallcaps Map View 83x54 Tactical HUD 0 Map Filters NONE Filters NONE Steam 1 RUN: cc85b01b-3ebc-4386-b09b-2590928c7a51